[Event "3rd Gujarat GM Open 2022"]
[Site "Ahmedabad"]
[Date "2022.04.02"]
[Round "4.12"]
[White "Vrashank Chouhan"]
[Black "Del Rey, Diego"]
[Result "1/2-1/2"]
[ECO "D02"]
[WhiteElo "1790"]
[BlackElo "2370"]
[Annotator "TA"]
[PlyCount "47"]
[EventDate "2022.03.31"]
[EventType "swiss"]
[EventCountry "IND"]
[SourceTitle "playchess.com"]
[Source "ChessBase"]
[SourceQuality "1"]
[TimeControl "5400+30"]

{[%evp 11,47,10,22,8,14,9,11,18,10,6,0,4,25,-4,0,-18,10,15,19,11,36,32,38,40,35,0,61,43,53,0,27,0,36,-164,-168,-156,0,-250]} 1. d4 {[%emt 1:31:00]} d5 {[%emt 1:31:00]} 2. Bf4 {[%emt 0:00:30]} Nf6 {[%emt 0:00:30]} 3. e3 {[%emt 0:00:30]} e6 {[%emt 0:00:30]} 4. Nf3 {[%emt 0:00:30]} c5 {[%emt 0:00:30]} 5. Nbd2 {[%emt 0:00:30]} Nc6 {[%emt 0:00:30]} 6. c3 {[%emt 0:00:30]} cxd4 $1 {[%emt 0:00:30][%mdl 4] is now more promising than 6...Bd6.} 7. exd4 {[%emt 0:00:30] D02: 1 d4 d5 2 Nf3 sidelines, including 2...Nf6 3 g3 and 2...Nf6 3 Bf4.} ({Much weaker is} 7. Nxd4 Bd6) 7... Nh5 {[%emt 0:00:30]} 8. Be3 {[%emt 0:00:30]} Bd6 {[%emt 0:00:30]} 9. Ne5 {[%emt 0:00:30]} g6 {[%emt 0:00:30]} 10. g4 {[%emt 0:00:30] [#] Black must now prevent Nxc6.} Ng7 {[%emt 0:00:30]} 11. h4 {[%emt 0:00:30]} h5 {[%emt 0:00:30]} 12. Bb5 {[%emt 0:00:30]} Bd7 {[%emt 0:00:30] [#]} 13. Bg5 $146 {[%emt 0:00:30][%cal Be3g5,Bg5f6,Bf6e5][%mdl 32]} ({Predecessor:} 13. Bxc6 Bxc6 14. Bg5 Qb6 15. Bf6 Kf8 16. Nb3 hxg4 17. Qxg4 Rh7 18. O-O-O Nh5 19. Qg5 {½-½ (32) Cziko,E (2447)-Schmidt,T (2432) ICCF email 2020}) 13... Qc7 {[%emt 0:00:30]} (13... Qb6 $5 {[%cal Rb6b5]} 14. Nxd7 Kxd7 $11) 14. Bxc6 {[%emt 0:00:30]} Bxc6 {[%emt 0:00:30]} 15. Bf6 {[%emt 0:00:30]} Rg8 {[%emt 0:00:30]} 16. Ndf3 {[%emt 0:00:30]} hxg4 {[%emt 0:00:30]} 17. Nxg4 {[%emt 0:00:30]} Nh5 {[%emt 0:00:30]} 18. Ng5 {[%emt 0:00:30]} Be7 {[%emt 0:00:30]} (18... Bb5 $1 $11) 19. Be5 $14 {[%emt 0:00:30]} Bd6 {[%emt 0:00:30]} 20. Bf6 {[%emt 0:00:30]} Be7 {[%emt 0:00:30]} 21. Be5 {[%emt 0:00:30]} (21. Qf3 $5 {[%cal Rf6e5]} Qf4 22. Qxf4 Nxf4 23. Kd2 $11) 21... Bd6 {[%emt 0:00:30]} 22. Nxf7 $2 {[%emt 0:00:30] [#]} Kxf7 $19 {[%emt 0:00:30]} 23. Nh6+ {[%emt 0:00:30]} Ke8 $2 {[%emt 0:00:30]} (23... Ke7 $17 24. Nxg8+ Rxg8 25. Bxd6+ Qxd6) 24. Ng4 $2 {[%emt 0:00:30] Weighted Error Value: White=0.33/Black=0.20 (precise)} (24. Bxd6 $11 Qxd6 25. Nxg8) 1/2-1/2

[Event "3rd Gujarat GM Open 2022"]
[Site "Ahmedabad"]
[Date "2022.04.02"]
[Round "4.13"]
[White "Majumder Shrayan"]
[Black "Ritviz, Parab"]
[Result "1/2-1/2"]
[ECO "D07"]
[WhiteElo "1686"]
[BlackElo "2349"]
[Annotator "TA"]
[PlyCount "94"]
[EventDate "2022.03.31"]
[EventType "swiss"]
[EventCountry "IND"]
[SourceTitle "playchess.com"]
[Source "ChessBase"]
[SourceQuality "1"]
[TimeControl "5400+30"]

{[%evp 17,94,33,33,25,26,-9,-16,-31,8,6,18,-83,-82,-102,-91,-99,-94,-137,-104,-159,-80,-93,17,8,26,8,8,8,10,11,10,8,8,8,12,8,48,48,68,67,79,72,72,66,72,54,56,50,52,50,60,60,60,60,60,61,70,60,60,52,57,52,52,14,14,0,58,0,14,14,14,14,14,14,14,14,14,14,10]} 1. d4 {[%emt 1:31:00]} d5 {[%emt 0:13:27]} 2. c4 {[%emt 0:00:00]} Nc6 {[%emt 0:01:02]} 3. e3 {[%emt 0:00:00]} e5 {[%emt 0:14:01]} 4. cxd5 {[%emt 0:00:00]} Qxd5 {[%emt 0:00:11]} 5. Nc3 {[%emt 0:00:00]} Bb4 {[%emt 0:00:20]} 6. Bd2 {[%emt 0:00:00]} Bxc3 {[%emt 0:02:56]} 7. bxc3 {[%emt 0:00:00]} Nf6 {[%emt 0:00:13]} 8. c4 {[%emt 0:00:00]} Qd6 {[%emt 0:00:30]} 9. d5 {[%emt 0:00:00]} Ne7 {[%emt 0:02:01]} 10. Rb1 {[%emt 0:00:00] D07: Queen's Gambit: Chigorin Defence.} a5 {[%emt 0:03:25]} 11. f3 {[%emt 0:00:00]} e4 {[%emt 0:16:55]} 12. Bc3 {[%emt 0:00:00] [#]} O-O $146 {[%emt 0:00:56] White must now prevent ...Nf5.} ({Predecessor:} 12... Nf5 13. Qd2 O-O 14. g4 exf3 15. gxf5 Ne4 16. Qd4 f2+ 17. Ke2 Nxc3+ 18. Qxc3 Bxf5 {1-0 (52) Simson,U-Kiik,K (2411) Puhajarve 2018}) 13. Bxf6 {[%emt 0:00:00]} Qxf6 {[%emt 0:00:30]} 14. fxe4 {[%emt 0:00:00]} (14. Qd4 $1 $11) 14... Qh4+ $17 {[%emt 0:00:57]} 15. Kd2 {[%emt 0:00:00]} Qxe4 {[%emt 0:01:16] [#] Hoping for ...Nf5.} 16. Qc2 {[%emt 0:00:00]} Qg4 {[%emt 0:04:53] aiming for ...Bf5.} ({Don't play} 16... Qxc2+ $6 17. Kxc2 c6 18. e4 $15) 17. Bd3 {[%emt 0:00:00]} c6 {[%emt 0:14:09]} ({Weaker is} 17... Qxg2+ 18. Ne2 $17) 18. Bxh7+ {[%emt 0:00:00]} Kh8 {[%emt 0:00:18]} 19. Qe4 {[%emt 0:00:00]} Qxe4 {[%emt 0:20:00]} (19... Qg5 $17 {[%cal Rc6d5]} 20. Nf3 Qxg2+ 21. Kc3 Re8) 20. Bxe4 $11 {[%emt 0:00:00] Strongly threatening d6.} Rd8 {[%emt 0:00:15][%cal Rc6d5]} 21. Ne2 {[%emt 0:00:00]} cxd5 {[%emt 0:00:45]} 22. cxd5 {[%emt 0:00:00]} Nxd5 {[%emt 0:01:12] [#] Threatens to win with ...Nf6+.} 23. Nd4 {[%emt 0:00:35]} Be6 {[%emt 0:01:04]} 24. Rxb7 {[%emt 0:04:15]} Nf6 {[%emt 0:00:31][%csl LRa2,LRe4]} 25. Bf3 $36 {[%emt 0:04:02][%mdl 2048] White has good play.} Bxa2 {[%emt 0:00:26]} 26. Ra1 {[%emt 0:00:18]} Be6 {[%emt 0:00:41]} 27. Rb5 {[%emt 0:00:06][%csl LRa5,LRa8]} Rac8 {[%emt 0:00:32][%cal Oa5a4]} 28. Raxa5 {[%emt 0:00:14]} Rc7 {[%emt 0:00:19]} 29. Rc5 {[%emt 0:01:12]} Re7 {[%emt 0:00:31]} 30. Ke2 {[%emt 0:00:49] And now Nc6 would win.} Bd7 {[%emt 0:00:31]} 31. Nc6 {[%emt 0:00:41] &Bianco is more active.} Bxc6 {[%emt 0:00:04]} 32. Rxc6 {[%emt 0:00:05]} Rb8 {[%emt 0:00:42]} 33. Rac5 {[%emt 0:02:00]} Kh7 {[%emt 0:00:27]} 34. Rc7 {[%emt 0:01:16]} Rb2+ {[%emt 0:00:32]} 35. Rc2 {[%emt 0:00:10]} Rxc2+ {[%emt 0:00:41]} 36. Rxc2 $14 {[%emt 0:00:03][%mdl 4096] Endgame KRB-KRN} g5 {[%emt 0:00:10]} 37. Rc4 {[%emt 0:00:32]} Kg6 {[%emt 0:00:26]} 38. Kf2 {[%emt 0:00:28]} Ra7 {[%emt 0:00:11]} 39. h3 {[%emt 0:00:37]} Ra2+ {[%emt 0:00:56]} 40. Kg3 {[%emt 0:00:06]} Ra3 {[%emt 0:00:04]} 41. Kf2 {[%emt 0:01:19]} Ra2+ {[%emt 0:00:04]} 42. Kg3 {[%emt 0:00:22]} Ra3 {[%emt 0:00:05] The position is equal.} 43. e4 {[%emt 0:00:15]} Nd7 {[%emt 0:00:16]} 44. Rd4 {[%emt 0:01:18]} Ne5 {[%emt 0:00:05]} 45. Rd6+ {[%emt 0:00:04]} f6 {[%emt 0:00:04]} 46. Rd8 {[%emt 0:00:11]} Rb3 {[%emt 0:00:41]} 47. Rh8 {[%emt 0:00:40]} Kg7 {[%emt 0:00:12] Weighted Error Value: White=0.12 (very precise) /Black=0.11 (very precise)} 1/2-1/2

[Event "3rd Gujarat GM Open 2022"]
[Site "Ahmedabad"]
[Date "2022.04.02"]
[Round "4.14"]
[White "Savchenko, Boris"]
[Black "Chitlange Sakshi"]
[Result "1-0"]
[ECO "E25"]
[WhiteElo "2535"]
[BlackElo "2205"]
[Annotator "ChessBase"]
[PlyCount "91"]
[EventDate "2022.03.31"]
[EventType "swiss"]
[EventCountry "IND"]
[SourceTitle "playchess.com"]
[Source "ChessBase"]
[SourceQuality "1"]
[TimeControl "5400+30"]

1. d4 {[%emt 1:31:00]} Nf6 {[%emt 1:31:00]} 2. c4 {[%emt 0:00:30]} e6 {[%emt 0:00:30]} 3. Nc3 {[%emt 0:00:30]} Bb4 {[%emt 0:00:30]} 4. a3 {[%emt 0:00:30]} Bxc3+ {[%emt 0:00:30]} 5. bxc3 {[%emt 0:00:30]} c5 {[%emt 0:00:30]} 6. f3 {[%emt 0:00:30]} d5 {[%emt 0:00:30]} 7. cxd5 {[%emt 0:00:30]} Nxd5 {[%emt 0:00:30]} 8. dxc5 {[%emt 0:00:30]} Qa5 {[%emt 0:00:30]} 9. e4 {[%emt 0:00:30]} Nf6 {[%emt 0:00:30]} 10. Be3 {[%emt 0:00:30]} O-O {[%emt 0:00:30]} 11. Kf2 {[%emt 0:00:30]} Rd8 {[%emt 0:00:30]} 12. Qb3 {[%emt 0:00:30]} Nfd7 {[%emt 0:00:30]} 13. Rd1 {[%emt 0:00:30]} Rf8 {[%emt 0:00:30]} 14. Ne2 {[%emt 0:00:30]} Na6 {[%emt 0:00:30]} 15. c6 {[%emt 0:00:30]} bxc6 {[%emt 0:00:30]} 16. Nd4 {[%emt 0:00:30]} Nac5 {[%emt 0:00:30]} 17. Qc2 {[%emt 0:00:30]} Qc7 {[%emt 0:00:30]} 18. Rd2 {[%emt 0:00:30]} Nb6 {[%emt 0:00:30]} 19. Be2 {[%emt 0:00:30]} Bd7 {[%emt 0:00:30]} 20. Rhd1 {[%emt 0:00:30]} Qxh2 {[%emt 0:00:30]} 21. Nf5 {[%emt 0:00:30]} Nca4 {[%emt 0:00:30]} 22. Ng3 {[%emt 0:00:30]} Qh4 {[%emt 0:00:30]} 23. Rh1 {[%emt 0:00:30]} Qe7 {[%emt 0:00:30]} 24. e5 {[%emt 0:00:30]} f5 {[%emt 0:00:30]} 25. exf6 {[%emt 0:00:30]} gxf6 {[%emt 0:00:30]} 26. Rh4 {[%emt 0:00:30]} c5 {[%emt 0:00:30]} 27. Rxd7 {[%emt 0:00:30]} Qxd7 {[%emt 0:00:30]} 28. Bb5 {[%emt 0:00:30]} Qe7 {[%emt 0:00:30]} 29. Rg4+ {[%emt 0:00:30]} Kh8 {[%emt 0:00:30]} 30. Bh6 {[%emt 0:00:30]} Rg8 {[%emt 0:00:30]} 31. Bxa4 {[%emt 0:00:30]} f5 {[%emt 0:00:30]} 32. Rxg8+ {[%emt 0:00:30]} Rxg8 {[%emt 0:00:30]} 33. Bf4 {[%emt 0:00:30]} e5 {[%emt 0:00:30]} 34. Qe2 {[%emt 0:00:30]} e4 {[%emt 0:00:30]} 35. Bc6 {[%emt 0:00:30]} Rf8 {[%emt 0:00:30]} 36. Bh6 {[%emt 0:00:30]} Rf7 {[%emt 0:00:30]} 37. Qd2 {[%emt 0:00:30]} e3+ {[%emt 0:00:30]} 38. Bxe3 {[%emt 0:00:30]} Nc4 {[%emt 0:00:30]} 39. Bd4+ {[%emt 0:00:30]} cxd4 {[%emt 0:00:30]} 40. Qxd4+ {[%emt 0:00:30]} Qf6 {[%emt 0:00:30]} 41. Qxc4 {[%emt 0:00:30]} Rc7 {[%emt 0:00:30]} 42. Qb4 {[%emt 0:00:30]} Qd8 {[%emt 0:00:30]} 43. Bd5 {[%emt 0:00:30]} h6 {[%emt 0:00:30]} 44. Qd4+ {[%emt 0:00:30]} Kh7 {[%emt 0:00:30]} 45. Nxf5 {[%emt 0:00:30]} Qg5 {[%emt 0:00:30]} 46. Be4 {[%emt 0:00:30]} 1-0

[Event "3rd Gujarat GM Open 2022"]
[Site "Ahmedabad"]
[Date "2022.04.02"]
[Round "4.15"]
[White "Gaurav Rajesh Zagade"]
[Black "Stany, G.A."]
[Result "1/2-1/2"]
[ECO "E04"]
[WhiteElo "2174"]
[BlackElo "2517"]
[Annotator "ChessBase"]
[PlyCount "78"]
[EventDate "2022.03.31"]
[EventType "swiss"]
[EventCountry "IND"]
[SourceTitle "playchess.com"]
[Source "ChessBase"]
[SourceQuality "1"]
[TimeControl "5400+30"]

1. d4 {[%emt 0:00:03]} Nf6 {[%emt 0:03:51]} 2. c4 {[%emt 0:00:07]} e6 {[%emt 0:00:03]} 3. g3 {[%emt 0:01:01]} d5 {[%emt 0:00:05]} 4. Bg2 {[%emt 0:02:08]} dxc4 {[%emt 0:00:07]} 5. Nf3 {[%emt 0:00:08]} Bd7 {[%emt 0:00:07]} 6. Nbd2 {[%emt 0:04:07]} Bc6 {[%emt 0:00:47]} 7. Nxc4 {[%emt 0:00:43]} Bd5 {[%emt 0:00:12]} 8. Nce5 {[%emt 0:04:48]} Be7 {[%emt 0:00:10]} 9. O-O {[%emt 0:00:36]} O-O {[%emt 0:00:03]} 10. b3 {[%emt 0:04:51]} a5 {[%emt 0:00:30]} 11. Nd3 {[%emt 0:02:50]} Nc6 {[%emt 0:27:27]} 12. Bb2 {[%emt 0:03:27]} a4 {[%emt 0:09:56]} 13. bxa4 {[%emt 0:02:27]} Ra7 {[%emt 0:01:39]} 14. Qc2 {[%emt 0:27:37]} Be4 {[%emt 0:03:21]} 15. Rfc1 {[%emt 0:10:53]} Qd5 {[%emt 0:24:13]} 16. Qb3 {[%emt 0:05:04]} Rfa8 {[%emt 0:01:02]} 17. Nc5 {[%emt 0:04:44]} Bxc5 {[%emt 0:00:22]} 18. Rxc5 {[%emt 0:03:38]} Qd8 {[%emt 0:00:27]} 19. e3 {[%emt 0:05:45]} Rxa4 {[%emt 0:04:06]} 20. a3 {[%emt 0:04:49]} Bd5 {[%emt 0:03:31]} 21. Qd1 {[%emt 0:01:11]} Ne4 {[%emt 0:05:56]} 22. Rcc1 {[%emt 0:00:27]} Nd6 {[%emt 0:01:39]} 23. Nd2 {[%emt 0:02:54]} Bxg2 {[%emt 0:00:40]} 24. Kxg2 {[%emt 0:00:03]} Qd7 {[%emt 0:05:33]} 25. Qc2 {[%emt 0:01:35]} h6 {[%emt 0:03:09]} 26. h4 {[%emt 0:02:47]} R8a7 {[%emt 0:02:00]} 27. Kg1 {[%emt 0:00:27]} Qd8 {[%emt 0:00:57]} 28. Qb3 {[%emt 0:01:25]} R4a5 {[%emt 0:00:41]} 29. Rc5 {[%emt 0:01:29]} Ne7 {[%emt 0:00:57]} 30. Rac1 {[%emt 0:02:19]} c6 {[%emt 0:00:08]} 31. e4 {[%emt 0:00:41]} Nb5 {[%emt 0:00:14]} 32. Nc4 {[%emt 0:00:38]} Ra4 {[%emt 0:00:29]} 33. Rd1 {[%emt 0:00:25]} b6 {[%emt 0:00:54]} 34. Rxb5 {[%emt 0:00:39]} cxb5 {[%emt 0:00:05]} 35. Qxb5 {[%emt 0:00:03]} R4a6 {[%emt 0:01:57]} 36. d5 {[%emt 0:00:08]} exd5 {[%emt 0:00:04]} 37. exd5 {[%emt 0:00:07]} Qd7 {[%emt 0:00:09]} 38. Qb3 {[%emt 0:00:37]} b5 {[%emt 0:00:17]} 39. Ne5 {[%emt 0:00:37]} Qd6 {[%emt 0:00:12]} 1/2-1/2

[Event "3rd Gujarat GM Open 2022"]
[Site "Ahmedabad"]
[Date "2022.04.02"]
[Round "4.16"]
[White "Harsha Bharathakoti"]
[Black "Jain Kashish Manoj"]
[Result "1/2-1/2"]
[ECO "C02"]
[WhiteElo "2499"]
[BlackElo "2162"]
[Annotator "ChessBase"]
[PlyCount "101"]
[EventDate "2022.03.31"]
[EventType "swiss"]
[EventCountry "IND"]
[SourceTitle "playchess.com"]
[Source "ChessBase"]
[SourceQuality "1"]
[TimeControl "5400+30"]

1. e4 {[%emt 0:00:15]} e6 {[%emt 0:02:27]} 2. d4 {[%emt 0:00:07]} d5 {[%emt 0:00:05]} 3. e5 {[%emt 0:03:34]} c5 {[%emt 0:00:10]} 4. c3 {[%emt 0:00:03]} Nc6 {[%emt 0:00:09]} 5. Nf3 {[%emt 0:00:02]} Qb6 {[%emt 0:00:28]} 6. a3 {[%emt 0:00:07]} c4 {[%emt 0:01:08]} 7. Nbd2 {[%emt 0:00:56]} Na5 {[%emt 0:00:12]} 8. Rb1 {[%emt 0:00:05]} Bd7 {[%emt 0:01:12]} 9. h4 {[%emt 0:00:25]} O-O-O {[%emt 0:01:42]} 10. g3 {[%emt 0:07:47]} Kb8 {[%emt 0:02:32]} 11. Bh3 {[%emt 0:03:49]} h6 {[%emt 0:02:28]} 12. Kf1 {[%emt 0:06:13]} Ne7 {[%emt 0:03:27]} 13. Kg2 {[%emt 0:01:21]} Nc8 {[%emt 0:01:18]} 14. h5 {[%emt 0:02:59]} Be7 {[%emt 0:01:08]} 15. Qc2 {[%emt 0:04:20]} Rdf8 {[%emt 0:15:14]} 16. Ng1 {[%emt 0:12:47]} Nb3 {[%emt 0:19:24]} 17. Nf1 {[%emt 0:07:38]} Ba4 {[%emt 0:05:46]} 18. Qe2 {[%emt 0:02:37]} Na5 {[%emt 0:08:01]} 19. Bf4 {[%emt 0:07:12]} g5 {[%emt 0:11:56]} 20. Be3 {[%emt 0:02:58]} Qb3 {[%emt 0:12:22]} 21. Re1 {[%emt 0:10:15]} Qc2 {[%emt 0:09:51]} 22. f4 {[%emt 0:03:34]} Rhg8 {[%emt 0:00:00]} 23. fxg5 {[%emt 0:01:31]} Bxg5 {[%emt 0:00:00]} 24. Nf3 {[%emt 0:00:40]} Bxe3 {[%emt 0:00:00]} 25. Qxc2 {[%emt 0:03:14]} Bxc2 {[%emt 0:00:00]} 26. Nxe3 {[%emt 0:00:04]} Bd3 {[%emt 0:00:26]} 27. Ng4 {[%emt 0:00:46]} Rh8 {[%emt 0:00:20]} 28. Nf6 {[%emt 0:03:21]} Kc7 {[%emt 0:00:23]} 29. g4 {[%emt 0:01:09]} Nb6 {[%emt 0:00:24]} 30. Kg3 {[%emt 0:00:04]} Nd7 {[%emt 0:01:09]} 31. Nxd7 {[%emt 0:01:41]} Kxd7 {[%emt 0:02:18]} 32. Rh2 {[%emt 0:00:18]} Rfg8 {[%emt 0:00:00]} 33. Rf2 {[%emt 0:00:55]} Ke7 {[%emt 0:00:00]} 34. Kh4 {[%emt 0:01:55]} Nc6 {[%emt 0:00:22]} 35. Bf1 {[%emt 0:00:03]} Bxf1 {[%emt 0:00:58]} 36. Rexf1 {[%emt 0:00:04]} Ke8 {[%emt 0:00:20]} 37. Ne1 {[%emt 0:02:14]} Rh7 {[%emt 0:00:06]} 38. a4 {[%emt 0:01:14]} Rgg7 {[%emt 0:01:08]} 39. Nc2 {[%emt 0:00:25]} Kd7 {[%emt 0:00:29]} 40. Ne3 {[%emt 0:00:29]} Ke8 {[%emt 0:00:33]} 41. Rf6 {[%emt 0:01:02]} Ke7 {[%emt 0:00:32]} 42. Nd1 {[%emt 0:03:11]} Nb8 {[%emt 0:00:25]} 43. Nf2 {[%emt 0:00:37]} Rg8 {[%emt 0:00:33]} 44. Nh3 {[%emt 0:02:09]} Nd7 {[%emt 0:01:04]} 45. R6f4 {[%emt 0:04:06]} Rhg7 {[%emt 0:00:00]} 46. Ng1 {[%emt 0:00:53]} f5 {[%emt 0:00:00]} 47. exf6+ {[%emt 0:00:54]} Nxf6 {[%emt 0:00:00]} 48. Rxf6 {[%emt 0:00:40]} Rxg4+ {[%emt 0:00:00]} 49. Kh3 {[%emt 0:00:03]} Rg3+ {[%emt 0:00:00]} 50. Kh2 {[%emt 0:00:02]} Rg2+ {[%emt 0:00:00]} 51. Kh3 {[%emt 0:00:01]} 1/2-1/2

[Event "3rd Gujarat GM Open 2022"]
[Site "Ahmedabad"]
[Date "2022.04.02"]
[Round "4.17"]
[White "Singh Ojasva"]
[Black "Chanda, Sandipan"]
[Result "1/2-1/2"]
[ECO "C91"]
[WhiteElo "2141"]
[BlackElo "2485"]
[Annotator "ChessBase"]
[PlyCount "69"]
[EventDate "2022.03.31"]
[EventType "swiss"]
[EventCountry "IND"]
[SourceTitle "playchess.com"]
[Source "ChessBase"]
[SourceQuality "1"]
[TimeControl "5400+30"]

1. e4 {[%emt 0:00:06]} e5 {[%emt 0:00:15]} 2. Nf3 {[%emt 0:00:31]} Nc6 {[%emt 0:00:09]} 3. Bb5 {[%emt 0:00:18]} a6 {[%emt 0:00:32]} 4. Ba4 {[%emt 0:00:11]} Nf6 {[%emt 0:00:11]} 5. O-O {[%emt 0:00:24]} d6 {[%emt 0:00:29]} 6. Re1 {[%emt 0:07:44]} b5 {[%emt 0:00:27]} 7. Bb3 {[%emt 0:00:05]} Be7 {[%emt 0:00:25]} 8. c3 {[%emt 0:00:46]} O-O {[%emt 0:00:10]} 9. d4 {[%emt 0:00:14]} Bg4 {[%emt 0:00:18]} 10. d5 {[%emt 0:00:33]} Na5 {[%emt 0:02:20]} 11. Bc2 {[%emt 0:00:05]} c6 {[%emt 0:00:18]} 12. h3 {[%emt 0:00:19]} Bc8 {[%emt 0:00:12]} 13. dxc6 {[%emt 0:00:20]} Nxc6 {[%emt 0:01:02]} 14. Nbd2 {[%emt 0:05:04]} h6 {[%emt 0:01:08]} 15. Nf1 {[%emt 0:00:35]} Be6 {[%emt 0:00:10]} 16. Ng3 {[%emt 0:16:03]} Re8 {[%emt 0:00:26]} 17. Nh4 {[%emt 0:09:00]} Nxe4 {[%emt 0:31:35]} 18. Nxe4 {[%emt 0:22:20]} d5 {[%emt 0:01:47]} 19. Nf3 {[%emt 0:02:45]} dxe4 {[%emt 0:00:15]} 20. Bxe4 {[%emt 0:01:48]} Qc7 {[%emt 0:00:23]} 21. Bxc6 {[%emt 0:31:49]} Qxc6 {[%emt 0:00:40]} 22. Nxe5 {[%emt 0:00:00]} Qc7 {[%emt 0:00:19]} 23. Bf4 {[%emt 0:00:00]} Bd6 {[%emt 0:02:28]} 24. Qf3 {[%emt 0:00:00]} Rad8 {[%emt 0:07:51]} 25. Nd3 {[%emt 0:00:00]} Bc4 {[%emt 0:01:13]} 26. Rxe8+ {[%emt 0:00:00]} Rxe8 {[%emt 0:00:05]} 27. Bxd6 {[%emt 0:00:00]} Qxd6 {[%emt 0:00:03]} 28. Nf4 {[%emt 0:00:00]} Bxa2 {[%emt 0:09:38]} 29. Rxa2 {[%emt 0:01:36]} Re1+ {[%emt 0:00:13]} 30. Kh2 {[%emt 0:00:04]} g5 {[%emt 0:00:05]} 31. b4 {[%emt 0:02:10]} gxf4 {[%emt 0:09:02]} 32. Qg4+ {[%emt 0:00:19]} Kh7 {[%emt 0:00:46]} 33. Qf5+ {[%emt 0:00:10]} Kg7 {[%emt 0:00:25]} 34. Qg4+ {[%emt 0:00:05]} Kh7 {[%emt 0:00:27]} 35. Qf5+ {[%emt 0:00:05]} 1/2-1/2

[Event "3rd Gujarat GM Open 2022"]
[Site "Ahmedabad"]
[Date "2022.04.02"]
[Round "4.18"]
[White "Ramnathan, Balasubramaniam"]
[Black "Krishna C R G"]
[Result "0-1"]
[ECO "C00"]
[WhiteElo "2141"]
[BlackElo "2466"]
[Annotator "ChessBase"]
[PlyCount "72"]
[EventDate "2022.03.31"]
[EventType "swiss"]
[EventCountry "IND"]
[SourceTitle "playchess.com"]
[Source "ChessBase"]
[SourceQuality "1"]
[TimeControl "5400+30"]

1. e4 {[%emt 0:00:13]} e6 {[%emt 0:00:23]} 2. d3 {[%emt 0:00:34]} d5 {[%emt 0:00:02]} 3. Nd2 {[%emt 0:00:08]} Nf6 {[%emt 0:00:04]} 4. g3 {[%emt 0:00:26]} c5 {[%emt 0:00:05]} 5. Bg2 {[%emt 0:00:05]} g6 {[%emt 0:00:08]} 6. Ne2 {[%emt 0:01:21]} Nc6 {[%emt 0:00:26]} 7. O-O {[%emt 0:01:40]} Bg7 {[%emt 0:00:46]} 8. h3 {[%emt 0:02:38]} O-O {[%emt 0:03:36]} 9. f4 {[%emt 0:03:00]} a5 {[%emt 0:05:02]} 10. g4 {[%emt 0:04:32]} Ne8 {[%emt 0:05:45]} 11. e5 {[%emt 0:06:50]} f6 {[%emt 0:00:17]} 12. exf6 {[%emt 0:00:12]} Qxf6 {[%emt 0:01:42]} 13. Nf3 {[%emt 0:00:24]} b6 {[%emt 0:04:01]} 14. a3 {[%emt 0:05:54]} Ba6 {[%emt 0:04:07]} 15. Rb1 {[%emt 0:03:47]} Nc7 {[%emt 0:04:59]} 16. Bd2 {[%emt 0:05:00]} Qe7 {[%emt 0:02:36]} 17. Ng3 {[%emt 0:01:36]} Qd6 {[%emt 0:04:34]} 18. Qe2 {[%emt 1:01:10]} Rae8 {[%emt 0:07:11]} 19. Rbe1 {[%emt 0:00:00]} Bxb2 {[%emt 0:04:12]} 20. c3 {[%emt 0:00:00]} Nb5 {[%emt 0:00:14]} 21. Ng5 {[%emt 0:00:00]} Nxc3 {[%emt 0:01:08]} 22. Qf2 {[%emt 0:00:00]} Na4 {[%emt 0:06:29]} 23. f5 {[%emt 0:00:00]} Bd4 {[%emt 0:00:09]} 24. Be3 {[%emt 0:00:00]} exf5 {[%emt 0:01:14]} 25. Bxd4 {[%emt 0:00:00]} Rxe1 {[%emt 0:03:11]} 26. Qxe1 {[%emt 0:00:00]} Nxd4 {[%emt 0:00:09]} 27. gxf5 {[%emt 0:00:00]} Bxd3 {[%emt 0:10:27]} 28. fxg6 {[%emt 0:00:00]} Bxf1 {[%emt 0:07:45]} 29. gxh7+ {[%emt 0:00:00]} Kh8 {[%emt 0:00:02]} 30. Nxf1 {[%emt 0:00:00]} Qf6 {[%emt 0:02:16]} 31. h4 {[%emt 0:00:00]} Nf5 {[%emt 0:07:19]} 32. Kh2 {[%emt 0:02:31]} Nb2 {[%emt 0:02:54]} 33. Kh3 {[%emt 0:03:16]} Nd3 {[%emt 0:00:24]} 34. Qd2 {[%emt 0:00:19]} Qh6 {[%emt 0:02:27]} 35. Bxd5 {[%emt 0:00:30]} Qxh4+ {[%emt 0:00:08]} 36. Kg2 {[%emt 0:00:06]} Nf4+ {[%emt 0:00:30]} 0-1

[Event "3rd Gujarat GM Open 2022"]
[Site "Ahmedabad"]
[Date "2022.04.03"]
[Round "5.3"]
[White "Srihari L R"]
[Black "Abdisalimov, Abdimalik"]
[Result "1/2-1/2"]
[ECO "D11"]
[WhiteElo "2400"]
[BlackElo "2435"]
[Annotator "ChessBase"]
[PlyCount "84"]
[EventDate "2022.03.31"]
[EventType "swiss"]
[EventCountry "IND"]
[SourceTitle "playchess.com"]
[Source "ChessBase"]
[SourceQuality "1"]
[TimeControl "5400+30"]

1. d4 {[%emt 0:00:12]} d5 {[%emt 0:02:16]} 2. c4 {[%emt 0:00:18]} c6 {[%emt 0:00:06]} 3. Nf3 {[%emt 0:02:48]} Nf6 {[%emt 0:00:08]} 4. g3 {[%emt 0:00:12]} Bf5 {[%emt 0:11:04]} 5. Bg2 {[%emt 0:01:10]} e6 {[%emt 0:00:06]} 6. Nc3 {[%emt 0:02:23]} Nbd7 {[%emt 0:03:42]} 7. Nh4 {[%emt 0:11:32]} dxc4 {[%emt 0:22:51]} 8. Nxf5 {[%emt 0:08:05]} exf5 {[%emt 0:00:21]} 9. d5 {[%emt 1:08:20]} cxd5 {[%emt 0:03:39]} 10. O-O {[%emt 0:00:00]} Nb6 {[%emt 0:03:15]} 11. Be3 {[%emt 0:00:00]} Be7 {[%emt 0:02:27]} 12. Bxb6 {[%emt 0:00:00]} axb6 {[%emt 0:00:21]} 13. Nxd5 {[%emt 0:00:00]} b5 {[%emt 0:01:08]} 14. Ne3 {[%emt 0:00:00]} Qc8 {[%emt 0:01:47]} 15. a4 {[%emt 0:00:00]} Bc5 {[%emt 0:07:45]} 16. Nd5 {[%emt 0:00:00]} Nxd5 {[%emt 0:16:07]} 17. Qxd5 {[%emt 0:00:00]} O-O {[%emt 0:00:24]} 18. axb5 {[%emt 0:00:00]} Rxa1 {[%emt 0:00:04]} 19. Rxa1 {[%emt 0:00:00]} b6 {[%emt 0:00:13]} 20. e3 {[%emt 0:00:00]} Qe6 {[%emt 0:01:34]} 21. Qxe6 {[%emt 0:00:00]} fxe6 {[%emt 0:00:05]} 22. Bf1 {[%emt 0:00:00]} Kf7 {[%emt 0:00:31]} 23. Bxc4 {[%emt 0:00:00]} Rd8 {[%emt 0:00:29]} 24. b3 {[%emt 0:00:00]} Kf6 {[%emt 0:01:14]} 25. Kf1 {[%emt 0:00:00]} Rd7 {[%emt 0:01:06]} 26. Ra8 {[%emt 0:00:00]} Rd1+ {[%emt 0:00:52]} 27. Ke2 {[%emt 0:00:00]} Rd7 {[%emt 0:00:21]} 28. Rb8 {[%emt 0:00:00]} Rd6 {[%emt 0:00:26]} 29. Rb7 {[%emt 0:00:00]} Bb4 {[%emt 0:00:12]} 30. h3 {[%emt 0:00:00]} h5 {[%emt 0:02:47]} 31. f4 {[%emt 0:00:00]} g6 {[%emt 0:04:32]} 32. Kf3 {[%emt 0:00:00]} h4 {[%emt 0:04:01]} 33. g4 {[%emt 0:00:00]} g5 {[%emt 0:00:03]} 34. Rh7 {[%emt 0:00:26]} Kg6 {[%emt 0:05:49]} 35. Rh8 {[%emt 0:02:21]} gxf4 {[%emt 0:01:40]} 36. exf4 {[%emt 0:00:15]} Be1 {[%emt 0:02:11]} 37. g5 {[%emt 0:02:09]} Bc3 {[%emt 0:01:24]} 38. Re8 {[%emt 0:02:08]} Kf7 {[%emt 0:02:29]} 39. Rc8 {[%emt 0:00:15]} Bb4 {[%emt 0:00:00]} 40. Rc7+ {[%emt 0:02:19]} Kg6 {[%emt 0:00:00]} 41. Rc6 {[%emt 0:00:12]} Kf7 {[%emt 0:00:00]} 42. Rc7+ {[%emt 0:00:55]} Kg6 {[%emt 0:00:00]} 1/2-1/2